[Event "Titled Tuesday Blitz June 13 Late 2023"]
[White "Gonzalez Vega, Alejandro"]
[Black "Seemann, Jakub"]
[WhiteFideId "3510042"]
[BlackFideId "21874697"]
[WhiteElo "2310"]
[BlackElo "2364"]
[Result "0-1"]
[Round "1"]
[TimeControl "180+2"]
[Date "2023.06.13"]
[WhiteClock "0:00:00"]
[BlackClock "0:00:27"]
[Board "143"]

1. e4 {[%clk 0:02:54]}  e5 {[%clk 0:02:57]} 2. Nf3 {[%clk 0:02:53]}  Nc6 {[%clk 0:02:57]} 3. d4 {[%clk 0:02:53]}  exd4 {[%clk 0:02:58]} 4. Bc4 {[%clk 0:02:53]}  Nf6 {[%clk 0:02:57]} 5. e5 {[%clk 0:02:53]}  d5 {[%clk 0:02:57]} 6. Bb5 {[%clk 0:02:54]}  Ne4 {[%clk 0:02:57]} 7. Nxd4 {[%clk 0:02:54]}  Bd7 {[%clk 0:02:57]} 8. Bxc6 {[%clk 0:02:55]}  bxc6 {[%clk 0:02:57]} 9. O-O {[%clk 0:02:56]}  Bc5 {[%clk 0:02:54]} 10. f3 {[%clk 0:02:56]}  Ng5 {[%clk 0:02:54]} 11. f4 {[%clk 0:02:57]}  Ne4 {[%clk 0:02:55]} 12. c3 {[%clk 0:02:57]}  O-O {[%clk 0:02:55]} 13. Nd2 {[%clk 0:02:55]}  Nxd2 {[%clk 0:02:54]} 14. Bxd2 {[%clk 0:02:54]}  Bb6 {[%clk 0:02:55]} 15. Qh5 {[%clk 0:02:46]}  c5 {[%clk 0:02:53]} 16. Nb3 {[%clk 0:02:40]}  c4+ {[%clk 0:02:53]} 17. Nd4 {[%clk 0:02:40]}  c5 {[%clk 0:02:53]} 18. Nf3 {[%clk 0:02:36]}  d4 {[%clk 0:02:51]} 19. f5 {[%clk 0:02:28]}  g6 {[%clk 0:02:46]} 20. Qh6 {[%clk 0:02:24]}  f6 {[%clk 0:02:17]} 21. fxg6 {[%clk 0:02:23]}  Qe7 {[%clk 0:02:16]} 22. exf6 {[%clk 0:02:15]}  Rxf6 {[%clk 0:02:14]} 23. gxh7+ {[%clk 0:02:12]}  Kh8 {[%clk 0:02:12]} 24. Rae1 {[%clk 0:01:52]}  Qf8 {[%clk 0:01:41]} 25. Qxf8+ {[%clk 0:01:45]}  Raxf8 {[%clk 0:01:42]} 26. Re7 {[%clk 0:01:08]}  Bc6 {[%clk 0:01:42]} 27. Bg5 {[%clk 0:00:54]}  Rf5 {[%clk 0:01:41]} 28. Bh6 {[%clk 0:00:52]}  R8f7 {[%clk 0:01:33]} 29. Rfe1 {[%clk 0:00:46]}  Bxf3 {[%clk 0:00:56]} 30. gxf3 {[%clk 0:00:26]}  Kxh7 {[%clk 0:00:56]} 31. Rxf7+ {[%clk 0:00:20]}  Rxf7 {[%clk 0:00:56]} 32. Re6 {[%clk 0:00:16]}  Rxf3 {[%clk 0:00:53]} 33. Bg5 {[%clk 0:00:15]}  dxc3 {[%clk 0:00:49]} 34. bxc3 {[%clk 0:00:15]}  Rxc3 {[%clk 0:00:49]} 35. Bf6 {[%clk 0:00:14]}  Rc2 {[%clk 0:00:44]} 36. a4 {[%clk 0:00:12]}  c3 {[%clk 0:00:43]} 37. h4 {[%clk 0:00:08]}  c4+ {[%clk 0:00:43]} 38. Kf1 {[%clk 0:00:08]}  Rf2+ {[%clk 0:00:41]} 39. Ke1 {[%clk 0:00:08]}  c2 {[%clk 0:00:38]} 40. Bg5 {[%clk 0:00:07]}  Rg2 {[%clk 0:00:31]} 41. Re7+ {[%clk 0:00:05]}  Kg6 {[%clk 0:00:30]} 42. Re6+ {[%clk 0:00:05]}  Kf5 {[%clk 0:00:30]} 43. Rf6+ {[%clk 0:00:00]}  Ke5 {[%clk 0:00:27]} 0-1


[Site "https://www.chess.com"]

[Event "Titled Tuesday Blitz June 13 Late 2023"]
[White "Fiorito, Francisco"]
[Black "rikchessmx"]
[WhiteFideId "180165"]
[WhiteElo "2319"]
[BlackElo "2307"]
[Result "1-0"]
[Round "1"]
[TimeControl "180+2"]
[Date "2023.06.13"]
[WhiteClock "0:00:13"]
[BlackClock "0:00:38"]
[Board "144"]

1. d4 {[%clk 0:02:57]}  Nf6 {[%clk 0:02:59]} 2. Nc3 {[%clk 0:02:53]}  d5 {[%clk 0:02:56]} 3. Bf4 {[%clk 0:02:52]}  c6 {[%clk 0:02:56]} 4. e3 {[%clk 0:02:51]}  Qb6 {[%clk 0:02:56]} 5. a3 {[%clk 0:02:49]}  Bf5 {[%clk 0:02:54]} 6. Rb1 {[%clk 0:02:04]}  Nbd7 {[%clk 0:02:36]} 7. f3 {[%clk 0:02:04]}  e6 {[%clk 0:02:36]} 8. g4 {[%clk 0:02:03]}  Bg6 {[%clk 0:02:35]} 9. h4 {[%clk 0:02:04]}  h5 {[%clk 0:02:35]} 10. g5 {[%clk 0:02:04]}  Ng8 {[%clk 0:02:34]} 11. Nh3 {[%clk 0:02:03]}  Ne7 {[%clk 0:02:34]} 12. Bd3 {[%clk 0:02:03]}  Bxd3 {[%clk 0:02:33]} 13. Qxd3 {[%clk 0:02:04]}  Nf5 {[%clk 0:02:33]} 14. Ne2 {[%clk 0:01:50]}  c5 {[%clk 0:02:30]} 15. c3 {[%clk 0:01:50]}  c4 {[%clk 0:02:29]} 16. Qc2 {[%clk 0:01:47]}  Bd6 {[%clk 0:02:29]} 17. e4 {[%clk 0:01:43]}  Bxf4 {[%clk 0:02:09]} 18. Nhxf4 {[%clk 0:01:40]}  dxe4 {[%clk 0:02:03]} 19. fxe4 {[%clk 0:01:41]}  Ne3 {[%clk 0:02:01]} 20. Qd2 {[%clk 0:01:37]}  Ng4 {[%clk 0:02:00]} 21. e5 {[%clk 0:01:30]}  Qc6 {[%clk 0:01:58]} 22. Ng3 {[%clk 0:01:10]}  O-O-O {[%clk 0:01:52]} 23. Qg2 {[%clk 0:01:06]}  Qa4 {[%clk 0:01:39]} 24. Ne4 {[%clk 0:01:01]}  Ndxe5 {[%clk 0:01:37]} 25. dxe5 {[%clk 0:00:50]}  Nxe5 {[%clk 0:01:38]} 26. O-O {[%clk 0:00:46]}  Qc6 {[%clk 0:01:24]} 27. Rbd1 {[%clk 0:00:38]}  f5 {[%clk 0:01:16]} 28. gxf6 {[%clk 0:00:19]}  gxf6 {[%clk 0:01:15]} 29. Nxf6 {[%clk 0:00:20]}  Qb6+ {[%clk 0:01:12]} 30. Kh1 {[%clk 0:00:19]}  Ng4 {[%clk 0:01:03]} 31. Nxg4 {[%clk 0:00:18]}  hxg4 {[%clk 0:01:02]} 32. Qxg4 {[%clk 0:00:18]}  Qc6+ {[%clk 0:00:58]} 33. Kh2 {[%clk 0:00:16]}  Rde8 {[%clk 0:00:55]} 34. Ng6 {[%clk 0:00:14]}  Qc7+ {[%clk 0:00:49]} 35. Qg3 {[%clk 0:00:12]}  Rhg8 {[%clk 0:00:48]} 36. Qxc7+ {[%clk 0:00:10]}  Kxc7 {[%clk 0:00:48]} 37. Ne5 {[%clk 0:00:10]}  b5 {[%clk 0:00:44]} 38. Rf7+ {[%clk 0:00:11]}  Kb6 {[%clk 0:00:44]} 39. Rdd7 {[%clk 0:00:11]}  Rd8 {[%clk 0:00:42]} 40. Rb7+ {[%clk 0:00:11]}  Kc5 {[%clk 0:00:42]} 41. Rfc7+ {[%clk 0:00:11]}  Kd6 {[%clk 0:00:42]} 42. Nf7+ {[%clk 0:00:11]}  Kd5 {[%clk 0:00:41]} 43. Nxd8 {[%clk 0:00:12]}  Rxd8 {[%clk 0:00:38]} 44. Rd7+ {[%clk 0:00:13]} 1-0


[Site "https://www.chess.com"]

[Event "Titled Tuesday Blitz June 13 Late 2023"]
[White "Ardila, Oscar Humberto"]
[Black "Kavutskiy, Konstantin"]
[WhiteFideId "4404742"]
[BlackFideId "2026384"]
[WhiteElo "1912"]
[BlackElo "2323"]
[Result "0-1"]
[Round "1"]
[TimeControl "180+2"]
[Date "2023.06.13"]
[WhiteClock "0:00:36"]
[BlackClock "0:00:32"]
[Board "145"]

1. d4 {[%clk 0:02:57]}  Nf6 {[%clk 0:02:59]} 2. c4 {[%clk 0:02:58]}  g6 {[%clk 0:02:59]} 3. Nc3 {[%clk 0:02:57]}  Bg7 {[%clk 0:02:57]} 4. e4 {[%clk 0:02:57]}  d6 {[%clk 0:02:58]} 5. Nf3 {[%clk 0:02:56]}  O-O {[%clk 0:02:58]} 6. Be2 {[%clk 0:02:56]}  e5 {[%clk 0:02:57]} 7. d5 {[%clk 0:02:57]}  Nbd7 {[%clk 0:02:56]} 8. O-O {[%clk 0:02:57]}  Nc5 {[%clk 0:02:55]} 9. Qc2 {[%clk 0:02:57]}  a5 {[%clk 0:02:56]} 10. Bg5 {[%clk 0:02:57]}  h6 {[%clk 0:02:55]} 11. Bxf6 {[%clk 0:02:57]}  Bxf6 {[%clk 0:02:54]} 12. b3 {[%clk 0:02:58]}  Bg7 {[%clk 0:02:51]} 13. a3 {[%clk 0:02:59]}  f5 {[%clk 0:02:49]} 14. Nd2 {[%clk 0:02:59]}  h5 {[%clk 0:02:45]} 15. b4 {[%clk 0:02:59]}  Nd7 {[%clk 0:02:40]} 16. exf5 {[%clk 0:02:53]}  gxf5 {[%clk 0:02:31]} 17. Bxh5 {[%clk 0:02:52]}  Qg5 {[%clk 0:02:28]} 18. Be2 {[%clk 0:02:49]}  e4 {[%clk 0:02:29]} 19. Rad1 {[%clk 0:02:21]}  axb4 {[%clk 0:02:27]} 20. axb4 {[%clk 0:02:20]}  Ne5 {[%clk 0:02:19]} 21. Nb5 {[%clk 0:02:18]}  Rf7 {[%clk 0:02:15]} 22. Kh1 {[%clk 0:02:12]}  Bf6 {[%clk 0:02:14]} 23. Nd4 {[%clk 0:02:07]}  Rh7 {[%clk 0:02:06]} 24. h3 {[%clk 0:01:51]}  Ra3 {[%clk 0:02:05]} 25. f3 {[%clk 0:01:39]}  Qg3 {[%clk 0:01:37]} 26. Nxe4 {[%clk 0:01:22]}  fxe4 {[%clk 0:01:30]} 27. Qxe4 {[%clk 0:01:18]}  Bxh3 {[%clk 0:01:22]} 28. Qxh7+ {[%clk 0:01:02]}  Kxh7 {[%clk 0:01:23]} 29. gxh3 {[%clk 0:01:03]}  Qxh3+ {[%clk 0:01:21]} 30. Kg1 {[%clk 0:01:03]}  Bg5 {[%clk 0:00:50]} 31. Nc2 {[%clk 0:00:52]}  Bf4 {[%clk 0:00:43]} 32. Rf2 {[%clk 0:00:51]}  Ra2 {[%clk 0:00:41]} 33. Bf1 {[%clk 0:00:47]}  Nxf3+ {[%clk 0:00:34]} 34. Rxf3 {[%clk 0:00:45]}  Qxf3 {[%clk 0:00:35]} 35. Bd3+ {[%clk 0:00:36]}  Kh8 {[%clk 0:00:32]} 0-1


[Site "https://www.chess.com"]

[Event "Titled Tuesday Blitz June 13 Late 2023"]
[White "Fernandez Garcia, Gumersindo"]
[Black "Yolosz"]
[WhiteFideId "24516740"]
[WhiteElo "2093"]
[BlackElo "2304"]
[Result "0-1"]
[Round "1"]
[TimeControl "180+2"]
[Date "2023.06.13"]
[WhiteClock "0:00:09"]
[BlackClock "0:00:03"]
[Board "146"]

1. d4 {[%clk 0:02:58]}  Nf6 {[%clk 0:02:58]} 2. c4 {[%clk 0:02:58]}  e6 {[%clk 0:02:58]} 3. Nf3 {[%clk 0:02:58]}  b6 {[%clk 0:02:55]} 4. g3 {[%clk 0:02:58]}  Bb7 {[%clk 0:02:54]} 5. Bg2 {[%clk 0:02:58]}  d5 {[%clk 0:02:46]} 6. cxd5 {[%clk 0:02:57]}  exd5 {[%clk 0:02:45]} 7. O-O {[%clk 0:02:56]}  Be7 {[%clk 0:02:44]} 8. Ne5 {[%clk 0:02:56]}  O-O {[%clk 0:02:43]} 9. Nc3 {[%clk 0:02:56]}  c6 {[%clk 0:02:41]} 10. Bf4 {[%clk 0:02:55]}  Na6 {[%clk 0:02:38]} 11. Rc1 {[%clk 0:02:54]}  Nc7 {[%clk 0:02:32]} 12. e4 {[%clk 0:02:35]}  Ne6 {[%clk 0:02:18]} 13. Be3 {[%clk 0:02:29]}  Rc8 {[%clk 0:01:59]} 14. exd5 {[%clk 0:02:12]}  Nxd5 {[%clk 0:01:37]} 15. Nxd5 {[%clk 0:02:11]}  cxd5 {[%clk 0:01:37]} 16. Qa4 {[%clk 0:02:10]}  a6 {[%clk 0:01:21]} 17. Rxc8 {[%clk 0:01:41]}  Qxc8 {[%clk 0:01:11]} 18. Rc1 {[%clk 0:01:40]}  Qa8 {[%clk 0:01:04]} 19. Nd7 {[%clk 0:01:34]}  Rc8 {[%clk 0:00:45]} 20. Nxb6 {[%clk 0:01:34]}  Rxc1+ {[%clk 0:00:44]} 21. Bxc1 {[%clk 0:01:35]}  Qd8 {[%clk 0:00:42]} 22. Nd7 {[%clk 0:01:04]}  Nxd4 {[%clk 0:00:38]} 23. Qxd4 {[%clk 0:01:01]}  Qxd7 {[%clk 0:00:38]} 24. h4 {[%clk 0:01:00]}  Bf6 {[%clk 0:00:31]} 25. Qb6 {[%clk 0:01:00]}  h6 {[%clk 0:00:08]} 26. b3 {[%clk 0:00:58]}  Qc6 {[%clk 0:00:08]} 27. Qe3 {[%clk 0:00:52]}  Qd7 {[%clk 0:00:07]} 28. Ba3 {[%clk 0:00:49]}  d4 {[%clk 0:00:07]} 29. Qd2 {[%clk 0:00:48]}  Bxg2 {[%clk 0:00:07]} 30. Kxg2 {[%clk 0:00:48]}  Qd5+ {[%clk 0:00:07]} 31. Kg1 {[%clk 0:00:49]}  Qe4 {[%clk 0:00:08]} 32. Bb2 {[%clk 0:00:48]}  d3 {[%clk 0:00:08]} 33. Bxf6 {[%clk 0:00:47]}  gxf6 {[%clk 0:00:09]} 34. f4 {[%clk 0:00:31]}  Qf3 {[%clk 0:00:08]} 35. Qf2 {[%clk 0:00:25]}  Qd1+ {[%clk 0:00:06]} 36. Kh2 {[%clk 0:00:23]}  d2 {[%clk 0:00:06]} 37. f5 {[%clk 0:00:18]}  Qe1 {[%clk 0:00:06]} 38. Qf4 {[%clk 0:00:10]}  Qe2+ {[%clk 0:00:05]} 39. Kh3 {[%clk 0:00:10]}  d1=Q {[%clk 0:00:05]} 40. Qb8+ {[%clk 0:00:08]}  Kh7 {[%clk 0:00:04]} 41. g4 {[%clk 0:00:08]}  Qh1+ {[%clk 0:00:03]} 42. Kg3 {[%clk 0:00:09]}  Qe3# {[%clk 0:00:03]} 0-1


[Site "https://www.chess.com"]

[Event "Titled Tuesday Blitz June 13 Late 2023"]
[White "Hajiyev, Kanan"]
[Black "Zhukov, Maksim"]
[WhiteFideId "13404148"]
[BlackFideId "34181790"]
[WhiteElo "2115"]
[BlackElo "1925"]
[Result "1-0"]
[Round "1"]
[TimeControl "180+2"]
[Date "2023.06.13"]
[WhiteClock "0:00:12"]
[BlackClock "0:00:11"]
[Board "148"]

1. d4 {[%clk 0:02:54]}  Nf6 {[%clk 0:02:43]} 2. Nf3 {[%clk 0:02:55]}  d5 {[%clk 0:02:43]} 3. c4 {[%clk 0:02:55]}  dxc4 {[%clk 0:02:39]} 4. Nc3 {[%clk 0:02:56]}  a6 {[%clk 0:02:35]} 5. a4 {[%clk 0:02:57]}  Bg4 {[%clk 0:02:34]} 6. e4 {[%clk 0:02:55]}  e5 {[%clk 0:02:33]} 7. dxe5 {[%clk 0:02:43]}  Qxd1+ {[%clk 0:02:31]} 8. Kxd1 {[%clk 0:02:44]}  Nfd7 {[%clk 0:02:29]} 9. Bf4 {[%clk 0:02:42]}  Nc6 {[%clk 0:02:27]} 10. Bxc4 {[%clk 0:02:35]}  Ndxe5 {[%clk 0:02:24]} 11. Be2 {[%clk 0:02:32]}  O-O-O+ {[%clk 0:02:23]} 12. Kc1 {[%clk 0:02:10]}  Bxf3 {[%clk 0:02:08]} 13. gxf3 {[%clk 0:02:06]}  Nd3+ {[%clk 0:02:05]} 14. Bxd3 {[%clk 0:02:06]}  Rxd3 {[%clk 0:02:05]} 15. Be3 {[%clk 0:02:04]}  Nb4 {[%clk 0:01:57]} 16. Rd1 {[%clk 0:01:57]}  Bd6 {[%clk 0:01:48]} 17. Rxd3 {[%clk 0:01:54]}  Nxd3+ {[%clk 0:01:48]} 18. Kc2 {[%clk 0:01:55]}  Nb4+ {[%clk 0:01:45]} 19. Kb3 {[%clk 0:01:55]}  Nd3 {[%clk 0:01:44]} 20. Rd1 {[%clk 0:01:51]}  Nc5+ {[%clk 0:01:36]} 21. Kc4 {[%clk 0:01:49]}  Nxa4 {[%clk 0:01:31]} 22. Nxa4 {[%clk 0:01:48]}  b5+ {[%clk 0:01:31]} 23. Kb3 {[%clk 0:01:48]}  bxa4+ {[%clk 0:01:31]} 24. Kxa4 {[%clk 0:01:49]}  Bxh2 {[%clk 0:01:31]} 25. f4 {[%clk 0:01:49]}  g5 {[%clk 0:01:26]} 26. fxg5 {[%clk 0:01:49]}  Bd6 {[%clk 0:01:25]} 27. Rh1 {[%clk 0:01:45]}  Kd7 {[%clk 0:01:15]} 28. f3 {[%clk 0:01:43]}  Ke6 {[%clk 0:01:13]} 29. Bd4 {[%clk 0:01:43]}  Be5 {[%clk 0:01:09]} 30. Rh6+ {[%clk 0:01:39]}  f6 {[%clk 0:01:06]} 31. Bxe5 {[%clk 0:01:39]}  Kxe5 {[%clk 0:01:06]} 32. Rxf6 {[%clk 0:01:34]}  Rg8 {[%clk 0:01:04]} 33. Rf5+ {[%clk 0:01:33]}  Kd4 {[%clk 0:01:02]} 34. Ka5 {[%clk 0:01:29]}  Rg6 {[%clk 0:01:00]} 35. b4 {[%clk 0:01:28]}  Re6 {[%clk 0:00:47]} 36. Rf7 {[%clk 0:01:21]}  Re5+ {[%clk 0:00:45]} 37. Kxa6 {[%clk 0:01:22]}  Rxg5 {[%clk 0:00:45]} 38. Rxh7 {[%clk 0:01:20]}  Rg6+ {[%clk 0:00:44]} 39. Ka5 {[%clk 0:01:14]}  Rf6 {[%clk 0:00:43]} 40. Rxc7 {[%clk 0:00:58]}  Rxf3 {[%clk 0:00:42]} 41. b5 {[%clk 0:00:53]}  Kxe4 {[%clk 0:00:41]} 42. b6 {[%clk 0:00:54]}  Ra3+ {[%clk 0:00:36]} 43. Kb4 {[%clk 0:00:52]}  Ra1 {[%clk 0:00:31]} 44. Rd7 {[%clk 0:00:41]}  Rb1+ {[%clk 0:00:27]} 45. Kc5 {[%clk 0:00:41]}  Ke5 {[%clk 0:00:26]} 46. Re7+ {[%clk 0:00:36]}  Kf6 {[%clk 0:00:25]} 47. Re4 {[%clk 0:00:37]}  Kf5 {[%clk 0:00:19]} 48. Rb4 {[%clk 0:00:37]}  Rc1+ {[%clk 0:00:19]} 49. Kd6 {[%clk 0:00:35]}  Rd1+ {[%clk 0:00:20]} 50. Kc6 {[%clk 0:00:32]}  Rc1+ {[%clk 0:00:20]} 51. Kb5 {[%clk 0:00:33]}  Rc8 {[%clk 0:00:18]} 52. b7 {[%clk 0:00:33]}  Rh8 {[%clk 0:00:17]} 53. Kb6 {[%clk 0:00:32]}  Ke6 {[%clk 0:00:18]} 54. Rd4 {[%clk 0:00:31]}  Rg8 {[%clk 0:00:16]} 55. Ka7 {[%clk 0:00:30]}  Rg7 {[%clk 0:00:15]} 56. Ka8 {[%clk 0:00:28]}  Ke5 {[%clk 0:00:12]} 57. b8=Q+ {[%clk 0:00:21]}  Kf5 {[%clk 0:00:12]} 58. Qf8+ {[%clk 0:00:20]}  Ke5 {[%clk 0:00:13]} 59. Qxg7+ {[%clk 0:00:20]}  Ke6 {[%clk 0:00:10]} 60. Qg5 {[%clk 0:00:15]}  Kf7 {[%clk 0:00:09]} 61. Qe5 {[%clk 0:00:14]}  Kf8 {[%clk 0:00:10]} 62. Rd7 {[%clk 0:00:12]}  Kg8 {[%clk 0:00:11]} 63. Qg7# {[%clk 0:00:12]} 1-0


[Site "https://www.chess.com"]

[Event "Titled Tuesday Blitz June 13 Late 2023"]
[White "Kostiukov, Alexandr"]
[Black "Bartel, Michal"]
[WhiteFideId "14108100"]
[BlackFideId "1119257"]
[WhiteElo "2202"]
[BlackElo "2282"]
[Result "0-1"]
[Round "1"]
[TimeControl "180+2"]
[Date "2023.06.13"]
[WhiteClock "0:00:12"]
[BlackClock "0:01:17"]
[Board "149"]

1. g3 {[%clk 0:02:50]}  d5 {[%clk 0:03:00]} 2. Bg2 {[%clk 0:02:50]}  Bf5 {[%clk 0:02:59]} 3. c4 {[%clk 0:02:49]}  e6 {[%clk 0:02:47]} 4. cxd5 {[%clk 0:02:41]}  exd5 {[%clk 0:02:47]} 5. Qb3 {[%clk 0:02:41]}  Nf6 {[%clk 0:02:46]} 6. Qxb7 {[%clk 0:02:38]}  Nbd7 {[%clk 0:02:46]} 7. Qb3 {[%clk 0:02:34]}  Rb8 {[%clk 0:02:45]} 8. Qd1 {[%clk 0:02:29]}  Bc5 {[%clk 0:02:44]} 9. Nf3 {[%clk 0:02:28]}  O-O {[%clk 0:02:44]} 10. O-O {[%clk 0:02:28]}  Re8 {[%clk 0:02:42]} 11. d4 {[%clk 0:02:28]}  Bd6 {[%clk 0:02:40]} 12. Nc3 {[%clk 0:02:28]}  h6 {[%clk 0:02:37]} 13. b3 {[%clk 0:02:22]}  Ne4 {[%clk 0:02:34]} 14. Bb2 {[%clk 0:01:58]}  Ndf6 {[%clk 0:02:32]} 15. Nd2 {[%clk 0:01:49]}  c5 {[%clk 0:02:28]} 16. dxc5 {[%clk 0:01:38]}  Bxc5 {[%clk 0:02:29]} 17. Ndxe4 {[%clk 0:01:38]}  dxe4 {[%clk 0:02:29]} 18. Qxd8 {[%clk 0:01:35]}  Rbxd8 {[%clk 0:02:28]} 19. Rfd1 {[%clk 0:01:36]}  e3 {[%clk 0:02:26]} 20. f4 {[%clk 0:01:32]}  Rd2 {[%clk 0:02:23]} 21. Na4 {[%clk 0:01:28]}  Bf8 {[%clk 0:02:12]} 22. Rxd2 {[%clk 0:01:15]}  exd2 {[%clk 0:02:12]} 23. h3 {[%clk 0:01:11]}  Rxe2 {[%clk 0:02:10]} 24. Nc3 {[%clk 0:01:00]}  Re1+ {[%clk 0:02:08]} 25. Kf2 {[%clk 0:01:00]}  Bc5+ {[%clk 0:02:05]} 26. Kf3 {[%clk 0:00:59]}  Bc2 {[%clk 0:01:55]} 27. Bf1 {[%clk 0:00:25]}  Rxa1 {[%clk 0:01:34]} 28. Bxa1 {[%clk 0:00:24]}  d1=Q+ {[%clk 0:01:27]} 29. Nxd1 {[%clk 0:00:24]}  Bxd1+ {[%clk 0:01:28]} 30. Be2 {[%clk 0:00:20]}  Bxe2+ {[%clk 0:01:27]} 31. Kxe2 {[%clk 0:00:21]}  Ne4 {[%clk 0:01:26]} 32. g4 {[%clk 0:00:19]}  Nd6 {[%clk 0:01:26]} 33. Kd3 {[%clk 0:00:19]}  g6 {[%clk 0:01:25]} 34. Be5 {[%clk 0:00:19]}  Kf8 {[%clk 0:01:25]} 35. Bd4 {[%clk 0:00:16]}  Bxd4 {[%clk 0:01:24]} 36. Kxd4 {[%clk 0:00:16]}  Ke7 {[%clk 0:01:24]} 37. Kc5 {[%clk 0:00:17]}  Kd7 {[%clk 0:01:20]} 38. b4 {[%clk 0:00:17]}  Ne4+ {[%clk 0:01:19]} 39. Kb5 {[%clk 0:00:17]}  Kc7 {[%clk 0:01:19]} 40. Ka6 {[%clk 0:00:17]}  Kb8 {[%clk 0:01:19]} 41. a4 {[%clk 0:00:16]}  Nf2 {[%clk 0:01:17]} 42. b5 {[%clk 0:00:14]}  Nxh3 {[%clk 0:01:17]} 43. a5 {[%clk 0:00:13]}  Nxf4 {[%clk 0:01:17]} 44. b6 {[%clk 0:00:14]}  axb6 {[%clk 0:01:17]} 45. axb6 {[%clk 0:00:12]}  h5 {[%clk 0:01:17]} 0-1


[Site "https://www.chess.com"]

[Event "Titled Tuesday Blitz June 13 Late 2023"]
[White "Moral Garcia, Serafin"]
[Black "Rodriguez Santiago, Jaime"]
[WhiteFideId "2201925"]
[BlackFideId "3100898"]
[WhiteElo "2274"]
[BlackElo "2025"]
[Result "1-0"]
[Round "1"]
[TimeControl "180+2"]
[Date "2023.06.13"]
[WhiteClock "0:00:35"]
[BlackClock "0:00:33"]
[Board "150"]

1. c4 {[%clk 0:02:58]}  e5 {[%clk 0:02:57]} 2. Nc3 {[%clk 0:02:57]}  Nf6 {[%clk 0:02:54]} 3. Nf3 {[%clk 0:02:57]}  Nc6 {[%clk 0:02:52]} 4. g3 {[%clk 0:02:57]}  Bc5 {[%clk 0:02:52]} 5. Bg2 {[%clk 0:02:37]}  d6 {[%clk 0:02:42]} 6. e3 {[%clk 0:02:32]}  a5 {[%clk 0:02:32]} 7. d4 {[%clk 0:02:29]}  exd4 {[%clk 0:02:28]} 8. exd4 {[%clk 0:02:29]}  Ba7 {[%clk 0:02:28]} 9. h3 {[%clk 0:02:28]}  O-O {[%clk 0:02:26]} 10. O-O {[%clk 0:02:25]}  h6 {[%clk 0:02:24]} 11. b3 {[%clk 0:02:22]}  Bf5 {[%clk 0:02:20]} 12. Re1 {[%clk 0:02:08]}  Re8 {[%clk 0:02:15]} 13. Be3 {[%clk 0:02:02]}  Nb4 {[%clk 0:02:09]} 14. Nh4 {[%clk 0:01:51]}  Bh7 {[%clk 0:02:04]} 15. Re2 {[%clk 0:01:51]}  Rb8 {[%clk 0:01:47]} 16. a3 {[%clk 0:01:37]}  Nc6 {[%clk 0:01:44]} 17. Qd2 {[%clk 0:01:35]}  Ne4 {[%clk 0:01:36]} 18. Nxe4 {[%clk 0:01:31]}  Bxe4 {[%clk 0:01:37]} 19. Bxe4 {[%clk 0:01:27]}  Rxe4 {[%clk 0:01:38]} 20. Rae1 {[%clk 0:01:02]}  Nxd4 {[%clk 0:01:31]} 21. Bxd4 {[%clk 0:00:56]}  Rxd4 {[%clk 0:01:30]} 22. Qc2 {[%clk 0:00:49]}  Bc5 {[%clk 0:00:54]} 23. Nf5 {[%clk 0:00:47]}  g6 {[%clk 0:00:38]} 24. Nxd4 {[%clk 0:00:44]}  Bxd4 {[%clk 0:00:39]} 25. Qe4 {[%clk 0:00:43]}  Bg7 {[%clk 0:00:37]} 26. Qe8+ {[%clk 0:00:40]}  Kh7 {[%clk 0:00:37]} 27. Qxf7 {[%clk 0:00:38]}  Qg5 {[%clk 0:00:33]} 28. Re7 {[%clk 0:00:35]} 1-0


[Site "https://www.chess.com"]

[Event "Titled Tuesday Blitz June 13 Late 2023"]
[White "Matsuura, Frederico"]
[Black "Sydoryka, Vladyslav"]
[WhiteFideId "2107848"]
[BlackFideId "14145928"]
[WhiteElo "2302"]
[BlackElo "2269"]
[Result "0-1"]
[Round "1"]
[TimeControl "180+2"]
[Date "2023.06.13"]
[WhiteClock "0:00:04"]
[BlackClock "0:00:07"]
[Board "155"]

1. d4 {[%clk 0:02:59]}  Nf6 {[%clk 0:02:59]} 2. c4 {[%clk 0:02:58]}  e6 {[%clk 0:02:59]} 3. Nf3 {[%clk 0:02:58]}  d5 {[%clk 0:02:59]} 4. Nc3 {[%clk 0:02:57]}  Bb4 {[%clk 0:02:57]} 5. e3 {[%clk 0:02:56]}  O-O {[%clk 0:02:56]} 6. Bd3 {[%clk 0:02:56]}  c5 {[%clk 0:02:45]} 7. O-O {[%clk 0:02:56]}  cxd4 {[%clk 0:02:42]} 8. exd4 {[%clk 0:02:55]}  dxc4 {[%clk 0:02:42]} 9. Bxc4 {[%clk 0:02:55]}  b6 {[%clk 0:02:43]} 10. Qe2 {[%clk 0:02:50]}  Bb7 {[%clk 0:02:42]} 11. Bg5 {[%clk 0:02:50]}  Nc6 {[%clk 0:02:36]} 12. Rad1 {[%clk 0:02:48]}  Ne7 {[%clk 0:02:32]} 13. Bxf6 {[%clk 0:02:34]}  gxf6 {[%clk 0:02:33]} 14. Ne4 {[%clk 0:02:34]}  Nd5 {[%clk 0:02:27]} 15. a3 {[%clk 0:02:11]}  Be7 {[%clk 0:02:23]} 16. Rfe1 {[%clk 0:02:11]}  Rc8 {[%clk 0:02:20]} 17. Ba2 {[%clk 0:02:10]}  Kh8 {[%clk 0:02:15]} 18. Ng3 {[%clk 0:02:01]}  f5 {[%clk 0:02:12]} 19. Ne5 {[%clk 0:01:59]}  Nf4 {[%clk 0:02:08]} 20. Qd2 {[%clk 0:01:50]}  Nxg2 {[%clk 0:02:05]} 21. Qh6 {[%clk 0:01:45]}  Bg5 {[%clk 0:01:56]} 22. Qh5 {[%clk 0:01:45]}  Rc7 {[%clk 0:01:38]} 23. Nxf7+ {[%clk 0:01:07]}  Rcxf7 {[%clk 0:01:36]} 24. Bxe6 {[%clk 0:01:08]}  Rg7 {[%clk 0:00:53]} 25. Nxf5 {[%clk 0:00:45]}  Nf4 {[%clk 0:00:53]} 26. Qg4 {[%clk 0:00:40]}  Rg6 {[%clk 0:00:35]} 27. Kf1 {[%clk 0:00:24]}  Bg2+ {[%clk 0:00:25]} 28. Kg1 {[%clk 0:00:22]}  Bh3 {[%clk 0:00:13]} 29. Qf3 {[%clk 0:00:14]}  Bxf5 {[%clk 0:00:11]} 30. Bxf5 {[%clk 0:00:12]}  Rxf5 {[%clk 0:00:12]} 31. Kh1 {[%clk 0:00:13]}  Rf8 {[%clk 0:00:11]} 32. Qe4 {[%clk 0:00:12]}  Bh6 {[%clk 0:00:09]} 33. d5 {[%clk 0:00:12]}  Qg5 {[%clk 0:00:07]} 34. Rg1 {[%clk 0:00:12]}  Qh5 {[%clk 0:00:05]} 35. d6 {[%clk 0:00:11]}  Rxg1+ {[%clk 0:00:05]} 36. Rxg1 {[%clk 0:00:11]}  Qd5 {[%clk 0:00:04]} 37. Qxd5 {[%clk 0:00:09]}  Nxd5 {[%clk 0:00:05]} 38. Rd1 {[%clk 0:00:10]}  Nf6 {[%clk 0:00:05]} 39. Kg2 {[%clk 0:00:09]}  Rd8 {[%clk 0:00:06]} 40. Kf3 {[%clk 0:00:08]}  Bf8 {[%clk 0:00:06]} 41. d7 {[%clk 0:00:08]}  Rxd7 {[%clk 0:00:07]} 42. Re1 {[%clk 0:00:09]}  Be7 {[%clk 0:00:06]} 43. Re6 {[%clk 0:00:08]}  Kg7 {[%clk 0:00:07]} 44. Rc6 {[%clk 0:00:09]}  Kf7 {[%clk 0:00:07]} 45. Ke2 {[%clk 0:00:09]}  Nd5 {[%clk 0:00:07]} 46. f3 {[%clk 0:00:09]}  Nf4+ {[%clk 0:00:07]} 47. Ke3 {[%clk 0:00:09]}  Bg5 {[%clk 0:00:07]} 48. Ke4 {[%clk 0:00:09]}  Ne6 {[%clk 0:00:07]} 49. Kf5 {[%clk 0:00:04]}  Nd4+ {[%clk 0:00:07]} 0-1


[Site "https://www.chess.com"]